{"text_format":"1","workbook":"xlsx","n_sheets":3,"sheets":["Salim","ورقة2","ورقة3"],"not_rendered":{"charts":0,"images":0,"macros":0,"external_links":0,"defined_names":0,"comments":0,"pivot_tables":0},"unopened":[],"bounds":{"document_bytes":16777216,"sheet_cells":100000,"rows_first":2000,"rows_last":500,"rows_between":2000,"halvings":0,"cell_chars":16384,"cell_head_chars":4096},"cells_cut":0,"cells_raw":0,"read":"whole","date_system":"1900"}

{"sheet":"Salim","index":0,"n_rows":508,"n_cols":16,"rows_kept":508,"cut":false,"hidden":false,"merged":[]}
[]
[]
[]
[]
[]
[]
[]
[null,{"$f":"IF(C8=\"\",\"\",MAX($A$4:B7)+1)","v":""},null,null,null,null,null,null,null,null,null,null,null,"الاسم",null,"الرقم"]
[null,null,null,null,null,null,null,null,null,null,null,null,null,"بدر1",null,{"$f":"IF(N9=\"\",\"\",MAX($P$8:P8)+1)","v":1}]
[null,null,null,null,null,null,null,null,null,null,null,null,null,"بدر2",null,{"$f":"IF(N10=\"\",\"\",MAX($P$8:P9)+1)","v":2}]
[null,null,null,null,null,null,null,null,null,null,null,null,null,"بدر3",null,{"$f":"IF(N11=\"\",\"\",MAX($P$8:P10)+1)","v":3}]
[null,null,null,null,null,null,null,null,null,null,null,null,null,"بدر4",null,{"$f":"IF(N12=\"\",\"\",MAX($P$8:P11)+1)","v":4}]
[null,null,null,null,null,null,null,null,null,null,null,null,null,"بدر5",null,{"$f":"IF(N13=\"\",\"\",MAX($P$8:P12)+1)","v":5}]
[null,null,null,null,null,null,null,null,null,null,null,null,null,null,null,{"$f":"IF(N14=\"\",\"\",MAX($P$8:P13)+1)","v":""}]
[null,null,null,null,null,null,null,null,null,null,null,null,null,null,null,{"$f":"IF(N15=\"\",\"\",MAX($P$8:P14)+1)","v":""}]
[null,null,null,null,null,null,null,null,null,null,null,null,null,null,null,{"$f":"IF(N16=\"\",\"\",MAX($P$8:P15)+1)","v":""}]
[null,null,null,null,null,null,null,null,null,null,null,null,null,null,null,{"$f":"IF(N17=\"\",\"\",MAX($P$8:P16)+1)","v":""}]
[null,null,null,null,null,null,null,null,null,null,null,null,null,null,null,{"$f":"IF(N18=\"\",\"\",MAX($P$8:P17)+1)","v":""}]
[null,null,null,null,null,null,null,null,null,null,null,null,null,null,null,{"$f":"IF(N19=\"\",\"\",MAX($P$8:P18)+1)","v":""}]
[null,null,null,null,null,null,null,null,null,null,null,null,null,null,null,{"$f":"IF(N20=\"\",\"\",MAX($P$8:P19)+1)","v":""}]
[null,null,null,null,null,null,null,null,null,null,null,null,null,null,null,{"$f":"IF(N21=\"\",\"\",MAX($P$8:P20)+1)","v":""}]
[null,null,null,null,null,null,null,null,null,null,null,null,null,null,null,{"$f":"IF(N22=\"\",\"\",MAX($P$8:P21)+1)","v":""}]
[null,null,null,null,null,null,null,null,null,null,null,null,null,null,null,{"$f":"IF(N23=\"\",\"\",MAX($P$8:P22)+1)","v":""}]
[null,null,null,null,null,null,null,null,null,null,null,null,null,null,null,{"$f":"IF(N24=\"\",\"\",MAX($P$8:P23)+1)","v":""}]
[null,null,null,null,null,null,null,null,null,null,null,null,null,null,null,{"$f":"IF(N25=\"\",\"\",MAX($P$8:P24)+1)","v":""}]
[null,null,null,null,null,null,null,null,null,null,null,null,null,null,null,{"$f":"IF(N26=\"\",\"\",MAX($P$8:P25)+1)","v":""}]
[null,null,null,null,null,null,null,null,null,null,null,null,null,null,null,{"$f":"IF(N27=\"\",\"\",MAX($P$8:P26)+1)","v":""}]
[null,null,null,null,null,null,null,null,null,null,null,null,null,null,null,{"$f":"IF(N28=\"\",\"\",MAX($P$8:P27)+1)","v":""}]
[null,null,null,null,null,null,null,null,null,null,null,null,null,null,null,{"$f":"IF(N29=\"\",\"\",MAX($P$8:P28)+1)","v":""}]
[null,null,null,null,null,null,null,null,null,null,null,null,null,null,null,{"$f":"IF(N30=\"\",\"\",MAX($P$8:P29)+1)","v":""}]
[null,null,null,null,null,null,null,null,null,null,null,null,null,null,null,{"$f":"IF(N31=\"\",\"\",MAX($P$8:P30)+1)","v":""}]
[null,null,null,null,null,null,null,null,null,null,null,null,null,null,null,{"$f":"IF(N32=\"\",\"\",MAX($P$8:P31)+1)","v":""}]
[null,null,null,null,null,null,null,null,null,null,null,null,null,null,null,{"$f":"IF(N33=\"\",\"\",MAX($P$8:P32)+1)","v":""}]
[null,null,null,null,null,null,null,null,null,null,null,null,null,null,null,{"$f":"IF(N34=\"\",\"\",MAX($P$8:P33)+1)","v":""}]
[null,null,null,null,null,null,null,null,null,null,null,null,null,null,null,{"$f":"IF(N35=\"\",\"\",MAX($P$8:P34)+1)","v":""}]
[null,null,null,null,null,null,null,null,null,null,null,null,null,null,null,{"$f":"IF(N36=\"\",\"\",MAX($P$8:P35)+1)","v":""}]
[null,null,null,null,null,null,null,null,null,null,null,null,null,null,null,{"$f":"IF(N37=\"\",\"\",MAX($P$8:P36)+1)","v":""}]
[null,null,null,null,null,null,null,null,null,null,null,null,null,null,null,{"$f":"IF(N38=\"\",\"\",MAX($P$8:P37)+1)","v":""}]
[null,null,null,null,null,null,null,null,null,null,null,null,null,null,null,{"$f":"IF(N39=\"\",\"\",MAX($P$8:P38)+1)","v":""}]
[null,null,null,null,null,null,null,null,null,null,null,null,null,null,null,{"$f":"IF(N40=\"\",\"\",MAX($P$8:P39)+1)","v":""}]
[null,null,null,null,null,null,null,null,null,null,null,null,null,null,null,{"$f":"IF(N41=\"\",\"\",MAX($P$8:P40)+1)","v":""}]
[null,null,null,null,null,null,null,null,null,null,null,null,null,null,null,{"$f":"IF(N42=\"\",\"\",MAX($P$8:P41)+1)","v":""}]
[null,null,null,null,null,null,null,null,null,null,null,null,null,null,null,{"$f":"IF(N43=\"\",\"\",MAX($P$8:P42)+1)","v":""}]
[null,null,null,null,null,null,null,null,null,null,null,null,null,null,null,{"$f":"IF(N44=\"\",\"\",MAX($P$8:P43)+1)","v":""}]
[null,null,null,null,null,null,null,null,null,null,null,null,null,null,null,{"$f":"IF(N45=\"\",\"\",MAX($P$8:P44)+1)","v":""}]
[null,null,null,null,null,null,null,null,null,null,null,null,null,null,null,{"$f":"IF(N46=\"\",\"\",MAX($P$8:P45)+1)","v":""}]
[null,null,null,null,null,null,null,null,null,null,null,null,null,null,null,{"$f":"IF(N47=\"\",\"\",MAX($P$8:P46)+1)","v":""}]
[null,null,null,null,null,null,null,null,null,null,null,null,null,null,null,{"$f":"IF(N48=\"\",\"\",MAX($P$8:P47)+1)","v":""}]
[null,null,null,null,null,null,null,null,null,null,null,null,null,null,null,{"$f":"IF(N49=\"\",\"\",MAX($P$8:P48)+1)","v":""}]
[null,null,null,null,null,null,null,null,null,null,null,null,null,null,null,{"$f":"IF(N50=\"\",\"\",MAX($P$8:P49)+1)","v":""}]
[null,null,null,null,null,null,null,null,null,null,null,null,null,null,null,{"$f":"IF(N51=\"\",\"\",MAX($P$8:P50)+1)","v":""}]
[null,null,null,null,null,null,null,null,null,null,null,null,null,null,null,{"$f":"IF(N52=\"\",\"\",MAX($P$8:P51)+1)","v":""}]
[null,null,null,null,null,null,null,null,null,null,null,null,null,null,null,{"$f":"IF(N53=\"\",\"\",MAX($P$8:P52)+1)","v":""}]
[null,null,null,null,null,null,null,null,null,null,null,null,null,null,null,{"$f":"IF(N54=\"\",\"\",MAX($P$8:P53)+1)","v":""}]
[null,null,null,null,null,null,null,null,null,null,null,null,null,null,null,{"$f":"IF(N55=\"\",\"\",MAX($P$8:P54)+1)","v":""}]
[null,null,null,null,null,null,null,null,null,null,null,null,null,null,null,{"$f":"IF(N56=\"\",\"\",MAX($P$8:P55)+1)","v":""}]
[null,null,null,null,null,null,null,null,null,null,null,null,null,null,null,{"$f":"IF(N57=\"\",\"\",MAX($P$8:P56)+1)","v":""}]
[null,null,null,null,null,null,null,null,null,null,null,null,null,null,null,{"$f":"IF(N58=\"\",\"\",MAX($P$8:P57)+1)","v":""}]
[null,null,null,null,null,null,null,null,null,null,null,null,null,null,null,{"$f":"IF(N59=\"\",\"\",MAX($P$8:P58)+1)","v":""}]
[null,null,null,null,null,null,null,null,null,null,null,null,null,null,null,{"$f":"IF(N60=\"\",\"\",MAX($P$8:P59)+1)","v":""}]
[null,null,null,null,null,null,null,null,null,null,null,null,null,null,null,{"$f":"IF(N61=\"\",\"\",MAX($P$8:P60)+1)","v":""}]
[null,null,null,null,null,null,null,null,null,null,null,null,null,null,null,{"$f":"IF(N62=\"\",\"\",MAX($P$8:P61)+1)","v":""}]
[null,null,null,null,null,null,null,null,null,null,null,null,null,null,null,{"$f":"IF(N63=\"\",\"\",MAX($P$8:P62)+1)","v":""}]
[null,null,null,null,null,null,null,null,null,null,null,null,null,null,null,{"$f":"IF(N64=\"\",\"\",MAX($P$8:P63)+1)","v":""}]
[null,null,null,null,null,null,null,null,null,null,null,null,null,null,null,{"$f":"IF(N65=\"\",\"\",MAX($P$8:P64)+1)","v":""}]
[null,null,null,null,null,null,null,null,null,null,null,null,null,null,null,{"$f":"IF(N66=\"\",\"\",MAX($P$8:P65)+1)","v":""}]
[null,null,null,null,null,null,null,null,null,null,null,null,null,null,null,{"$f":"IF(N67=\"\",\"\",MAX($P$8:P66)+1)","v":""}]
[null,null,null,null,null,null,null,null,null,null,null,null,null,null,null,{"$f":"IF(N68=\"\",\"\",MAX($P$8:P67)+1)","v":""}]
[null,null,null,null,null,null,null,null,null,null,null,null,null,null,null,{"$f":"IF(N69=\"\",\"\",MAX($P$8:P68)+1)","v":""}]
[null,null,null,null,null,null,null,null,null,null,null,null,null,null,null,{"$f":"IF(N70=\"\",\"\",MAX($P$8:P69)+1)","v":""}]
[null,null,null,null,null,null,null,null,null,null,null,null,null,null,null,{"$f":"IF(N71=\"\",\"\",MAX($P$8:P70)+1)","v":""}]
[null,null,null,null,null,null,null,null,null,null,null,null,null,null,null,{"$f":"IF(N72=\"\",\"\",MAX($P$8:P71)+1)","v":""}]
[null,null,null,null,null,null,null,null,null,null,null,null,null,null,null,{"$f":"IF(N73=\"\",\"\",MAX($P$8:P72)+1)","v":""}]
[null,null,null,null,null,null,null,null,null,null,null,null,null,null,null,{"$f":"IF(N74=\"\",\"\",MAX($P$8:P73)+1)","v":""}]
[null,null,null,null,null,null,null,null,null,null,null,null,null,null,null,{"$f":"IF(N75=\"\",\"\",MAX($P$8:P74)+1)","v":""}]
[null,null,null,null,null,null,null,null,null,null,null,null,null,null,null,{"$f":"IF(N76=\"\",\"\",MAX($P$8:P75)+1)","v":""}]
[null,null,null,null,null,null,null,null,null,null,null,null,null,null,null,{"$f":"IF(N77=\"\",\"\",MAX($P$8:P76)+1)","v":""}]
[null,null,null,null,null,null,null,null,null,null,null,null,null,null,null,{"$f":"IF(N78=\"\",\"\",MAX($P$8:P77)+1)","v":""}]
[null,null,null,null,null,null,null,null,null,null,null,null,null,null,null,{"$f":"IF(N79=\"\",\"\",MAX($P$8:P78)+1)","v":""}]
[null,null,null,null,null,null,null,null,null,null,null,null,null,null,null,{"$f":"IF(N80=\"\",\"\",MAX($P$8:P79)+1)","v":""}]
[null,null,null,null,null,null,null,null,null,null,null,null,null,null,null,{"$f":"IF(N81=\"\",\"\",MAX($P$8:P80)+1)","v":""}]
[null,null,null,null,null,null,null,null,null,null,null,null,null,null,null,{"$f":"IF(N82=\"\",\"\",MAX($P$8:P81)+1)","v":""}]
[null,null,null,null,null,null,null,null,null,null,null,null,null,null,null,{"$f":"IF(N83=\"\",\"\",MAX($P$8:P82)+1)","v":""}]
[null,null,null,null,null,null,null,null,null,null,null,null,null,null,null,{"$f":"IF(N84=\"\",\"\",MAX($P$8:P83)+1)","v":""}]
[null,null,null,null,null,null,null,null,null,null,null,null,null,null,null,{"$f":"IF(N85=\"\",\"\",MAX($P$8:P84)+1)","v":""}]
[null,null,null,null,null,null,null,null,null,null,null,null,null,null,null,{"$f":"IF(N86=\"\",\"\",MAX($P$8:P85)+1)","v":""}]
[null,null,null,null,null,null,null,null,null,null,null,null,null,null,null,{"$f":"IF(N87=\"\",\"\",MAX($P$8:P86)+1)","v":""}]
[null,null,null,null,null,null,null,null,null,null,null,null,null,null,null,{"$f":"IF(N88=\"\",\"\",MAX($P$8:P87)+1)","v":""}]
[null,null,null,null,null,null,null,null,null,null,null,null,null,null,null,{"$f":"IF(N89=\"\",\"\",MAX($P$8:P88)+1)","v":""}]
[null,null,null,null,null,null,null,null,null,null,null,null,null,null,null,{"$f":"IF(N90=\"\",\"\",MAX($P$8:P89)+1)","v":""}]
[null,null,null,null,null,null,null,null,null,null,null,null,null,null,null,{"$f":"IF(N91=\"\",\"\",MAX($P$8:P90)+1)","v":""}]
[null,null,null,null,null,null,null,null,null,null,null,null,null,null,null,{"$f":"IF(N92=\"\",\"\",MAX($P$8:P91)+1)","v":""}]
[null,null,null,null,null,null,null,null,null,null,null,null,null,null,null,{"$f":"IF(N93=\"\",\"\",MAX($P$8:P92)+1)","v":""}]
[null,null,null,null,null,null,null,null,null,null,null,null,null,null,null,{"$f":"IF(N94=\"\",\"\",MAX($P$8:P93)+1)","v":""}]
[null,null,null,null,null,null,null,null,null,null,null,null,null,null,null,{"$f":"IF(N95=\"\",\"\",MAX($P$8:P94)+1)","v":""}]
[null,null,null,null,null,null,null,null,null,null,null,null,null,null,null,{"$f":"IF(N96=\"\",\"\",MAX($P$8:P95)+1)","v":""}]
[null,null,null,null,null,null,null,null,null,null,null,null,null,null,null,{"$f":"IF(N97=\"\",\"\",MAX($P$8:P96)+1)","v":""}]
[null,null,null,null,null,null,null,null,null,null,null,null,null,null,null,{"$f":"IF(N98=\"\",\"\",MAX($P$8:P97)+1)","v":""}]
[null,null,null,null,null,null,null,null,null,null,null,null,null,null,null,{"$f":"IF(N99=\"\",\"\",MAX($P$8:P98)+1)","v":""}]
[null,null,null,null,null,null,null,null,null,null,null,null,null,null,null,{"$f":"IF(N100=\"\",\"\",MAX($P$8:P99)+1)","v":""}]
[null,null,null,null,null,null,null,null,null,null,null,null,null,null,null,{"$f":"IF(N101=\"\",\"\",MAX($P$8:P100)+1)","v":""}]
[null,null,null,null,null,null,null,null,null,null,null,null,null,null,null,{"$f":"IF(N102=\"\",\"\",MAX($P$8:P101)+1)","v":""}]
[null,null,null,null,null,null,null,null,null,null,null,null,null,null,null,{"$f":"IF(N103=\"\",\"\",MAX($P$8:P102)+1)","v":""}]
[null,null,null,null,null,null,null,null,null,null,null,null,null,null,null,{"$f":"IF(N104=\"\",\"\",MAX($P$8:P103)+1)","v":""}]
[null,null,null,null,null,null,null,null,null,null,null,null,null,null,null,{"$f":"IF(N105=\"\",\"\",MAX($P$8:P104)+1)","v":""}]
[null,null,null,null,null,null,null,null,null,null,null,null,null,null,null,{"$f":"IF(N106=\"\",\"\",MAX($P$8:P105)+1)","v":""}]
[null,null,null,null,null,null,null,null,null,null,null,null,null,null,null,{"$f":"IF(N107=\"\",\"\",MAX($P$8:P106)+1)","v":""}]
[null,null,null,null,null,null,null,null,null,null,null,null,null,null,null,{"$f":"IF(N108=\"\",\"\",MAX($P$8:P107)+1)","v":""}]
[null,null,null,null,null,null,null,null,null,null,null,null,null,null,null,{"$f":"IF(N109=\"\",\"\",MAX($P$8:P108)+1)","v":""}]
[null,null,null,null,null,null,null,null,null,null,null,null,null,null,null,{"$f":"IF(N110=\"\",\"\",MAX($P$8:P109)+1)","v":""}]
[null,null,null,null,null,null,null,null,null,null,null,null,null,null,null,{"$f":"IF(N111=\"\",\"\",MAX($P$8:P110)+1)","v":""}]
[null,null,null,null,null,null,null,null,null,null,null,null,null,null,null,{"$f":"IF(N112=\"\",\"\",MAX($P$8:P111)+1)","v":""}]
[null,null,null,null,null,null,null,null,null,null,null,null,null,null,null,{"$f":"IF(N113=\"\",\"\",MAX($P$8:P112)+1)","v":""}]
[null,null,null,null,null,null,null,null,null,null,null,null,null,null,null,{"$f":"IF(N114=\"\",\"\",MAX($P$8:P113)+1)","v":""}]
[null,null,null,null,null,null,null,null,null,null,null,null,null,null,null,{"$f":"IF(N115=\"\",\"\",MAX($P$8:P114)+1)","v":""}]
[null,null,null,null,null,null,null,null,null,null,null,null,null,null,null,{"$f":"IF(N116=\"\",\"\",MAX($P$8:P115)+1)","v":""}]
[null,null,null,null,null,null,null,null,null,null,null,null,null,null,null,{"$f":"IF(N117=\"\",\"\",MAX($P$8:P116)+1)","v":""}]
[null,null,null,null,null,null,null,null,null,null,null,null,null,null,null,{"$f":"IF(N118=\"\",\"\",MAX($P$8:P117)+1)","v":""}]
[null,null,null,null,null,null,null,null,null,null,null,null,null,null,null,{"$f":"IF(N119=\"\",\"\",MAX($P$8:P118)+1)","v":""}]
[null,null,null,null,null,null,null,null,null,null,null,null,null,null,null,{"$f":"IF(N120=\"\",\"\",MAX($P$8:P119)+1)","v":""}]
[null,null,null,null,null,null,null,null,null,null,null,null,null,null,null,{"$f":"IF(N121=\"\",\"\",MAX($P$8:P120)+1)","v":""}]
[null,null,null,null,null,null,null,null,null,null,null,null,null,null,null,{"$f":"IF(N122=\"\",\"\",MAX($P$8:P121)+1)","v":""}]
[null,null,null,null,null,null,null,null,null,null,null,null,null,null,null,{"$f":"IF(N123=\"\",\"\",MAX($P$8:P122)+1)","v":""}]
[null,null,null,null,null,null,null,null,null,null,null,null,null,null,null,{"$f":"IF(N124=\"\",\"\",MAX($P$8:P123)+1)","v":""}]
[null,null,null,null,null,null,null,null,null,null,null,null,null,null,null,{"$f":"IF(N125=\"\",\"\",MAX($P$8:P124)+1)","v":""}]
[null,null,null,null,null,null,null,null,null,null,null,null,null,null,null,{"$f":"IF(N126=\"\",\"\",MAX($P$8:P125)+1)","v":""}]
[null,null,null,null,null,null,null,null,null,null,null,null,null,null,null,{"$f":"IF(N127=\"\",\"\",MAX($P$8:P126)+1)","v":""}]
[null,null,null,null,null,null,null,null,null,null,null,null,null,null,null,{"$f":"IF(N128=\"\",\"\",MAX($P$8:P127)+1)","v":""}]
[null,null,null,null,null,null,null,null,null,null,null,null,null,null,null,{"$f":"IF(N129=\"\",\"\",MAX($P$8:P128)+1)","v":""}]
[null,null,null,null,null,null,null,null,null,null,null,null,null,null,null,{"$f":"IF(N130=\"\",\"\",MAX($P$8:P129)+1)","v":""}]
[null,null,null,null,null,null,null,null,null,null,null,null,null,null,null,{"$f":"IF(N131=\"\",\"\",MAX($P$8:P130)+1)","v":""}]
[null,null,null,null,null,null,null,null,null,null,null,null,null,null,null,{"$f":"IF(N132=\"\",\"\",MAX($P$8:P131)+1)","v":""}]
[null,null,null,null,null,null,null,null,null,null,null,null,null,null,null,{"$f":"IF(N133=\"\",\"\",MAX($P$8:P132)+1)","v":""}]
[null,null,null,null,null,null,null,null,null,null,null,null,null,null,null,{"$f":"IF(N134=\"\",\"\",MAX($P$8:P133)+1)","v":""}]
[null,null,null,null,null,null,null,null,null,null,null,null,null,null,null,{"$f":"IF(N135=\"\",\"\",MAX($P$8:P134)+1)","v":""}]
[null,null,null,null,null,null,null,null,null,null,null,null,null,null,null,{"$f":"IF(N136=\"\",\"\",MAX($P$8:P135)+1)","v":""}]
[null,null,null,null,null,null,null,null,null,null,null,null,null,null,null,{"$f":"IF(N137=\"\",\"\",MAX($P$8:P136)+1)","v":""}]
[null,null,null,null,null,null,null,null,null,null,null,null,null,null,null,{"$f":"IF(N138=\"\",\"\",MAX($P$8:P137)+1)","v":""}]
[null,null,null,null,null,null,null,null,null,null,null,null,null,null,null,{"$f":"IF(N139=\"\",\"\",MAX($P$8:P138)+1)","v":""}]
[null,null,null,null,null,null,null,null,null,null,null,null,null,null,null,{"$f":"IF(N140=\"\",\"\",MAX($P$8:P139)+1)","v":""}]
[null,null,null,null,null,null,null,null,null,null,null,null,null,null,null,{"$f":"IF(N141=\"\",\"\",MAX($P$8:P140)+1)","v":""}]
[null,null,null,null,null,null,null,null,null,null,null,null,null,null,null,{"$f":"IF(N142=\"\",\"\",MAX($P$8:P141)+1)","v":""}]
[null,null,null,null,null,null,null,null,null,null,null,null,null,null,null,{"$f":"IF(N143=\"\",\"\",MAX($P$8:P142)+1)","v":""}]
[null,null,null,null,null,null,null,null,null,null,null,null,null,null,null,{"$f":"IF(N144=\"\",\"\",MAX($P$8:P143)+1)","v":""}]
[null,null,null,null,null,null,null,null,null,null,null,null,null,null,null,{"$f":"IF(N145=\"\",\"\",MAX($P$8:P144)+1)","v":""}]
[null,null,null,null,null,null,null,null,null,null,null,null,null,null,null,{"$f":"IF(N146=\"\",\"\",MAX($P$8:P145)+1)","v":""}]
[null,null,null,null,null,null,null,null,null,null,null,null,null,null,null,{"$f":"IF(N147=\"\",\"\",MAX($P$8:P146)+1)","v":""}]
[null,null,null,null,null,null,null,null,null,null,null,null,null,null,null,{"$f":"IF(N148=\"\",\"\",MAX($P$8:P147)+1)","v":""}]
[null,null,null,null,null,null,null,null,null,null,null,null,null,null,null,{"$f":"IF(N149=\"\",\"\",MAX($P$8:P148)+1)","v":""}]
[null,null,null,null,null,null,null,null,null,null,null,null,null,null,null,{"$f":"IF(N150=\"\",\"\",MAX($P$8:P149)+1)","v":""}]
[null,null,null,null,null,null,null,null,null,null,null,null,null,null,null,{"$f":"IF(N151=\"\",\"\",MAX($P$8:P150)+1)","v":""}]
[null,null,null,null,null,null,null,null,null,null,null,null,null,null,null,{"$f":"IF(N152=\"\",\"\",MAX($P$8:P151)+1)","v":""}]
[null,null,null,null,null,null,null,null,null,null,null,null,null,null,null,{"$f":"IF(N153=\"\",\"\",MAX($P$8:P152)+1)","v":""}]
[null,null,null,null,null,null,null,null,null,null,null,null,null,null,null,{"$f":"IF(N154=\"\",\"\",MAX($P$8:P153)+1)","v":""}]
[null,null,null,null,null,null,null,null,null,null,null,null,null,null,null,{"$f":"IF(N155=\"\",\"\",MAX($P$8:P154)+1)","v":""}]
[null,null,null,null,null,null,null,null,null,null,null,null,null,null,null,{"$f":"IF(N156=\"\",\"\",MAX($P$8:P155)+1)","v":""}]
[null,null,null,null,null,null,null,null,null,null,null,null,null,null,null,{"$f":"IF(N157=\"\",\"\",MAX($P$8:P156)+1)","v":""}]
[null,null,null,null,null,null,null,null,null,null,null,null,null,null,null,{"$f":"IF(N158=\"\",\"\",MAX($P$8:P157)+1)","v":""}]
[null,null,null,null,null,null,null,null,null,null,null,null,null,null,null,{"$f":"IF(N159=\"\",\"\",MAX($P$8:P158)+1)","v":""}]
[null,null,null,null,null,null,null,null,null,null,null,null,null,null,null,{"$f":"IF(N160=\"\",\"\",MAX($P$8:P159)+1)","v":""}]
[null,null,null,null,null,null,null,null,null,null,null,null,null,null,null,{"$f":"IF(N161=\"\",\"\",MAX($P$8:P160)+1)","v":""}]
[null,null,null,null,null,null,null,null,null,null,null,null,null,null,null,{"$f":"IF(N162=\"\",\"\",MAX($P$8:P161)+1)","v":""}]
[null,null,null,null,null,null,null,null,null,null,null,null,null,null,null,{"$f":"IF(N163=\"\",\"\",MAX($P$8:P162)+1)","v":""}]
[null,null,null,null,null,null,null,null,null,null,null,null,null,null,null,{"$f":"IF(N164=\"\",\"\",MAX($P$8:P163)+1)","v":""}]
[null,null,null,null,null,null,null,null,null,null,null,null,null,null,null,{"$f":"IF(N165=\"\",\"\",MAX($P$8:P164)+1)","v":""}]
[null,null,null,null,null,null,null,null,null,null,null,null,null,null,null,{"$f":"IF(N166=\"\",\"\",MAX($P$8:P165)+1)","v":""}]
[null,null,null,null,null,null,null,null,null,null,null,null,null,null,null,{"$f":"IF(N167=\"\",\"\",MAX($P$8:P166)+1)","v":""}]
[null,null,null,null,null,null,null,null,null,null,null,null,null,null,null,{"$f":"IF(N168=\"\",\"\",MAX($P$8:P167)+1)","v":""}]
[null,null,null,null,null,null,null,null,null,null,null,null,null,null,null,{"$f":"IF(N169=\"\",\"\",MAX($P$8:P168)+1)","v":""}]
[null,null,null,null,null,null,null,null,null,null,null,null,null,null,null,{"$f":"IF(N170=\"\",\"\",MAX($P$8:P169)+1)","v":""}]
[null,null,null,null,null,null,null,null,null,null,null,null,null,null,null,{"$f":"IF(N171=\"\",\"\",MAX($P$8:P170)+1)","v":""}]
[null,null,null,null,null,null,null,null,null,null,null,null,null,null,null,{"$f":"IF(N172=\"\",\"\",MAX($P$8:P171)+1)","v":""}]
[null,null,null,null,null,null,null,null,null,null,null,null,null,null,null,{"$f":"IF(N173=\"\",\"\",MAX($P$8:P172)+1)","v":""}]
[null,null,null,null,null,null,null,null,null,null,null,null,null,null,null,{"$f":"IF(N174=\"\",\"\",MAX($P$8:P173)+1)","v":""}]
[null,null,null,null,null,null,null,null,null,null,null,null,null,null,null,{"$f":"IF(N175=\"\",\"\",MAX($P$8:P174)+1)","v":""}]
[null,null,null,null,null,null,null,null,null,null,null,null,null,null,null,{"$f":"IF(N176=\"\",\"\",MAX($P$8:P175)+1)","v":""}]
[null,null,null,null,null,null,null,null,null,null,null,null,null,null,null,{"$f":"IF(N177=\"\",\"\",MAX($P$8:P176)+1)","v":""}]
[null,null,null,null,null,null,null,null,null,null,null,null,null,null,null,{"$f":"IF(N178=\"\",\"\",MAX($P$8:P177)+1)","v":""}]
[null,null,null,null,null,null,null,null,null,null,null,null,null,null,null,{"$f":"IF(N179=\"\",\"\",MAX($P$8:P178)+1)","v":""}]
[null,null,null,null,null,null,null,null,null,null,null,null,null,null,null,{"$f":"IF(N180=\"\",\"\",MAX($P$8:P179)+1)","v":""}]
[null,null,null,null,null,null,null,null,null,null,null,null,null,null,null,{"$f":"IF(N181=\"\",\"\",MAX($P$8:P180)+1)","v":""}]
[null,null,null,null,null,null,null,null,null,null,null,null,null,null,null,{"$f":"IF(N182=\"\",\"\",MAX($P$8:P181)+1)","v":""}]
[null,null,null,null,null,null,null,null,null,null,null,null,null,null,null,{"$f":"IF(N183=\"\",\"\",MAX($P$8:P182)+1)","v":""}]
[null,null,null,null,null,null,null,null,null,null,null,null,null,null,null,{"$f":"IF(N184=\"\",\"\",MAX($P$8:P183)+1)","v":""}]
[null,null,null,null,null,null,null,null,null,null,null,null,null,null,null,{"$f":"IF(N185=\"\",\"\",MAX($P$8:P184)+1)","v":""}]
[null,null,null,null,null,null,null,null,null,null,null,null,null,null,null,{"$f":"IF(N186=\"\",\"\",MAX($P$8:P185)+1)","v":""}]
[null,null,null,null,null,null,null,null,null,null,null,null,null,null,null,{"$f":"IF(N187=\"\",\"\",MAX($P$8:P186)+1)","v":""}]
[null,null,null,null,null,null,null,null,null,null,null,null,null,null,null,{"$f":"IF(N188=\"\",\"\",MAX($P$8:P187)+1)","v":""}]
[null,null,null,null,null,null,null,null,null,null,null,null,null,null,null,{"$f":"IF(N189=\"\",\"\",MAX($P$8:P188)+1)","v":""}]
[null,null,null,null,null,null,null,null,null,null,null,null,null,null,null,{"$f":"IF(N190=\"\",\"\",MAX($P$8:P189)+1)","v":""}]
[null,null,null,null,null,null,null,null,null,null,null,null,null,null,null,{"$f":"IF(N191=\"\",\"\",MAX($P$8:P190)+1)","v":""}]
[null,null,null,null,null,null,null,null,null,null,null,null,null,null,null,{"$f":"IF(N192=\"\",\"\",MAX($P$8:P191)+1)","v":""}]
[null,null,null,null,null,null,null,null,null,null,null,null,null,null,null,{"$f":"IF(N193=\"\",\"\",MAX($P$8:P192)+1)","v":""}]
[null,null,null,null,null,null,null,null,null,null,null,null,null,null,null,{"$f":"IF(N194=\"\",\"\",MAX($P$8:P193)+1)","v":""}]
[null,null,null,null,null,null,null,null,null,null,null,null,null,null,null,{"$f":"IF(N195=\"\",\"\",MAX($P$8:P194)+1)","v":""}]
[null,null,null,null,null,null,null,null,null,null,null,null,null,null,null,{"$f":"IF(N196=\"\",\"\",MAX($P$8:P195)+1)","v":""}]
[null,null,null,null,null,null,null,null,null,null,null,null,null,null,null,{"$f":"IF(N197=\"\",\"\",MAX($P$8:P196)+1)","v":""}]
[null,null,null,null,null,null,null,null,null,null,null,null,null,null,null,{"$f":"IF(N198=\"\",\"\",MAX($P$8:P197)+1)","v":""}]
[null,null,null,null,null,null,null,null,null,null,null,null,null,null,null,{"$f":"IF(N199=\"\",\"\",MAX($P$8:P198)+1)","v":""}]
[null,null,null,null,null,null,null,null,null,null,null,null,null,null,null,{"$f":"IF(N200=\"\",\"\",MAX($P$8:P199)+1)","v":""}]
[null,null,null,null,null,null,null,null,null,null,null,null,null,null,null,{"$f":"IF(N201=\"\",\"\",MAX($P$8:P200)+1)","v":""}]
[null,null,null,null,null,null,null,null,null,null,null,null,null,null,null,{"$f":"IF(N202=\"\",\"\",MAX($P$8:P201)+1)","v":""}]
[null,null,null,null,null,null,null,null,null,null,null,null,null,null,null,{"$f":"IF(N203=\"\",\"\",MAX($P$8:P202)+1)","v":""}]
[null,null,null,null,null,null,null,null,null,null,null,null,null,null,null,{"$f":"IF(N204=\"\",\"\",MAX($P$8:P203)+1)","v":""}]
[null,null,null,null,null,null,null,null,null,null,null,null,null,null,null,{"$f":"IF(N205=\"\",\"\",MAX($P$8:P204)+1)","v":""}]
[null,null,null,null,null,null,null,null,null,null,null,null,null,null,null,{"$f":"IF(N206=\"\",\"\",MAX($P$8:P205)+1)","v":""}]
[null,null,null,null,null,null,null,null,null,null,null,null,null,null,null,{"$f":"IF(N207=\"\",\"\",MAX($P$8:P206)+1)","v":""}]
[null,null,null,null,null,null,null,null,null,null,null,null,null,null,null,{"$f":"IF(N208=\"\",\"\",MAX($P$8:P207)+1)","v":""}]
[null,null,null,null,null,null,null,null,null,null,null,null,null,null,null,{"$f":"IF(N209=\"\",\"\",MAX($P$8:P208)+1)","v":""}]
[null,null,null,null,null,null,null,null,null,null,null,null,null,null,null,{"$f":"IF(N210=\"\",\"\",MAX($P$8:P209)+1)","v":""}]
[null,null,null,null,null,null,null,null,null,null,null,null,null,null,null,{"$f":"IF(N211=\"\",\"\",MAX($P$8:P210)+1)","v":""}]
[null,null,null,null,null,null,null,null,null,null,null,null,null,null,null,{"$f":"IF(N212=\"\",\"\",MAX($P$8:P211)+1)","v":""}]
[null,null,null,null,null,null,null,null,null,null,null,null,null,null,null,{"$f":"IF(N213=\"\",\"\",MAX($P$8:P212)+1)","v":""}]
[null,null,null,null,null,null,null,null,null,null,null,null,null,null,null,{"$f":"IF(N214=\"\",\"\",MAX($P$8:P213)+1)","v":""}]
[null,null,null,null,null,null,null,null,null,null,null,null,null,null,null,{"$f":"IF(N215=\"\",\"\",MAX($P$8:P214)+1)","v":""}]
[null,null,null,null,null,null,null,null,null,null,null,null,null,null,null,{"$f":"IF(N216=\"\",\"\",MAX($P$8:P215)+1)","v":""}]
[null,null,null,null,null,null,null,null,null,null,null,null,null,null,null,{"$f":"IF(N217=\"\",\"\",MAX($P$8:P216)+1)","v":""}]
[null,null,null,null,null,null,null,null,null,null,null,null,null,null,null,{"$f":"IF(N218=\"\",\"\",MAX($P$8:P217)+1)","v":""}]
[null,null,null,null,null,null,null,null,null,null,null,null,null,null,null,{"$f":"IF(N219=\"\",\"\",MAX($P$8:P218)+1)","v":""}]
[null,null,null,null,null,null,null,null,null,null,null,null,null,null,null,{"$f":"IF(N220=\"\",\"\",MAX($P$8:P219)+1)","v":""}]
[null,null,null,null,null,null,null,null,null,null,null,null,null,null,null,{"$f":"IF(N221=\"\",\"\",MAX($P$8:P220)+1)","v":""}]
[null,null,null,null,null,null,null,null,null,null,null,null,null,null,null,{"$f":"IF(N222=\"\",\"\",MAX($P$8:P221)+1)","v":""}]
[null,null,null,null,null,null,null,null,null,null,null,null,null,null,null,{"$f":"IF(N223=\"\",\"\",MAX($P$8:P222)+1)","v":""}]
[null,null,null,null,null,null,null,null,null,null,null,null,null,null,null,{"$f":"IF(N224=\"\",\"\",MAX($P$8:P223)+1)","v":""}]
[null,null,null,null,null,null,null,null,null,null,null,null,null,null,null,{"$f":"IF(N225=\"\",\"\",MAX($P$8:P224)+1)","v":""}]
[null,null,null,null,null,null,null,null,null,null,null,null,null,null,null,{"$f":"IF(N226=\"\",\"\",MAX($P$8:P225)+1)","v":""}]
[null,null,null,null,null,null,null,null,null,null,null,null,null,null,null,{"$f":"IF(N227=\"\",\"\",MAX($P$8:P226)+1)","v":""}]
[null,null,null,null,null,null,null,null,null,null,null,null,null,null,null,{"$f":"IF(N228=\"\",\"\",MAX($P$8:P227)+1)","v":""}]
[null,null,null,null,null,null,null,null,null,null,null,null,null,null,null,{"$f":"IF(N229=\"\",\"\",MAX($P$8:P228)+1)","v":""}]
[null,null,null,null,null,null,null,null,null,null,null,null,null,null,null,{"$f":"IF(N230=\"\",\"\",MAX($P$8:P229)+1)","v":""}]
[null,null,null,null,null,null,null,null,null,null,null,null,null,null,null,{"$f":"IF(N231=\"\",\"\",MAX($P$8:P230)+1)","v":""}]
[null,null,null,null,null,null,null,null,null,null,null,null,null,null,null,{"$f":"IF(N232=\"\",\"\",MAX($P$8:P231)+1)","v":""}]
[null,null,null,null,null,null,null,null,null,null,null,null,null,null,null,{"$f":"IF(N233=\"\",\"\",MAX($P$8:P232)+1)","v":""}]
[null,null,null,null,null,null,null,null,null,null,null,null,null,null,null,{"$f":"IF(N234=\"\",\"\",MAX($P$8:P233)+1)","v":""}]
[null,null,null,null,null,null,null,null,null,null,null,null,null,null,null,{"$f":"IF(N235=\"\",\"\",MAX($P$8:P234)+1)","v":""}]
[null,null,null,null,null,null,null,null,null,null,null,null,null,null,null,{"$f":"IF(N236=\"\",\"\",MAX($P$8:P235)+1)","v":""}]
[null,null,null,null,null,null,null,null,null,null,null,null,null,null,null,{"$f":"IF(N237=\"\",\"\",MAX($P$8:P236)+1)","v":""}]
[null,null,null,null,null,null,null,null,null,null,null,null,null,null,null,{"$f":"IF(N238=\"\",\"\",MAX($P$8:P237)+1)","v":""}]
[null,null,null,null,null,null,null,null,null,null,null,null,null,null,null,{"$f":"IF(N239=\"\",\"\",MAX($P$8:P238)+1)","v":""}]
[null,null,null,null,null,null,null,null,null,null,null,null,null,null,null,{"$f":"IF(N240=\"\",\"\",MAX($P$8:P239)+1)","v":""}]
[null,null,null,null,null,null,null,null,null,null,null,null,null,null,null,{"$f":"IF(N241=\"\",\"\",MAX($P$8:P240)+1)","v":""}]
[null,null,null,null,null,null,null,null,null,null,null,null,null,null,null,{"$f":"IF(N242=\"\",\"\",MAX($P$8:P241)+1)","v":""}]
[null,null,null,null,null,null,null,null,null,null,null,null,null,null,null,{"$f":"IF(N243=\"\",\"\",MAX($P$8:P242)+1)","v":""}]
[null,null,null,null,null,null,null,null,null,null,null,null,null,null,null,{"$f":"IF(N244=\"\",\"\",MAX($P$8:P243)+1)","v":""}]
[null,null,null,null,null,null,null,null,null,null,null,null,null,null,null,{"$f":"IF(N245=\"\",\"\",MAX($P$8:P244)+1)","v":""}]
[null,null,null,null,null,null,null,null,null,null,null,null,null,null,null,{"$f":"IF(N246=\"\",\"\",MAX($P$8:P245)+1)","v":""}]
[null,null,null,null,null,null,null,null,null,null,null,null,null,null,null,{"$f":"IF(N247=\"\",\"\",MAX($P$8:P246)+1)","v":""}]
[null,null,null,null,null,null,null,null,null,null,null,null,null,null,null,{"$f":"IF(N248=\"\",\"\",MAX($P$8:P247)+1)","v":""}]
[null,null,null,null,null,null,null,null,null,null,null,null,null,null,null,{"$f":"IF(N249=\"\",\"\",MAX($P$8:P248)+1)","v":""}]
[null,null,null,null,null,null,null,null,null,null,null,null,null,null,null,{"$f":"IF(N250=\"\",\"\",MAX($P$8:P249)+1)","v":""}]
[null,null,null,null,null,null,null,null,null,null,null,null,null,null,null,{"$f":"IF(N251=\"\",\"\",MAX($P$8:P250)+1)","v":""}]
[null,null,null,null,null,null,null,null,null,null,null,null,null,null,null,{"$f":"IF(N252=\"\",\"\",MAX($P$8:P251)+1)","v":""}]
[null,null,null,null,null,null,null,null,null,null,null,null,null,null,null,{"$f":"IF(N253=\"\",\"\",MAX($P$8:P252)+1)","v":""}]
[null,null,null,null,null,null,null,null,null,null,null,null,null,null,null,{"$f":"IF(N254=\"\",\"\",MAX($P$8:P253)+1)","v":""}]
[null,null,null,null,null,null,null,null,null,null,null,null,null,null,null,{"$f":"IF(N255=\"\",\"\",MAX($P$8:P254)+1)","v":""}]
[null,null,null,null,null,null,null,null,null,null,null,null,null,null,null,{"$f":"IF(N256=\"\",\"\",MAX($P$8:P255)+1)","v":""}]
[null,null,null,null,null,null,null,null,null,null,null,null,null,null,null,{"$f":"IF(N257=\"\",\"\",MAX($P$8:P256)+1)","v":""}]
[null,null,null,null,null,null,null,null,null,null,null,null,null,null,null,{"$f":"IF(N258=\"\",\"\",MAX($P$8:P257)+1)","v":""}]
[null,null,null,null,null,null,null,null,null,null,null,null,null,null,null,{"$f":"IF(N259=\"\",\"\",MAX($P$8:P258)+1)","v":""}]
[null,null,null,null,null,null,null,null,null,null,null,null,null,null,null,{"$f":"IF(N260=\"\",\"\",MAX($P$8:P259)+1)","v":""}]
[null,null,null,null,null,null,null,null,null,null,null,null,null,null,null,{"$f":"IF(N261=\"\",\"\",MAX($P$8:P260)+1)","v":""}]
[null,null,null,null,null,null,null,null,null,null,null,null,null,null,null,{"$f":"IF(N262=\"\",\"\",MAX($P$8:P261)+1)","v":""}]
[null,null,null,null,null,null,null,null,null,null,null,null,null,null,null,{"$f":"IF(N263=\"\",\"\",MAX($P$8:P262)+1)","v":""}]
[null,null,null,null,null,null,null,null,null,null,null,null,null,null,null,{"$f":"IF(N264=\"\",\"\",MAX($P$8:P263)+1)","v":""}]
[null,null,null,null,null,null,null,null,null,null,null,null,null,null,null,{"$f":"IF(N265=\"\",\"\",MAX($P$8:P264)+1)","v":""}]
[null,null,null,null,null,null,null,null,null,null,null,null,null,null,null,{"$f":"IF(N266=\"\",\"\",MAX($P$8:P265)+1)","v":""}]
[null,null,null,null,null,null,null,null,null,null,null,null,null,null,null,{"$f":"IF(N267=\"\",\"\",MAX($P$8:P266)+1)","v":""}]
[null,null,null,null,null,null,null,null,null,null,null,null,null,null,null,{"$f":"IF(N268=\"\",\"\",MAX($P$8:P267)+1)","v":""}]
[null,null,null,null,null,null,null,null,null,null,null,null,null,null,null,{"$f":"IF(N269=\"\",\"\",MAX($P$8:P268)+1)","v":""}]
[null,null,null,null,null,null,null,null,null,null,null,null,null,null,null,{"$f":"IF(N270=\"\",\"\",MAX($P$8:P269)+1)","v":""}]
[null,null,null,null,null,null,null,null,null,null,null,null,null,null,null,{"$f":"IF(N271=\"\",\"\",MAX($P$8:P270)+1)","v":""}]
[null,null,null,null,null,null,null,null,null,null,null,null,null,null,null,{"$f":"IF(N272=\"\",\"\",MAX($P$8:P271)+1)","v":""}]
[null,null,null,null,null,null,null,null,null,null,null,null,null,null,null,{"$f":"IF(N273=\"\",\"\",MAX($P$8:P272)+1)","v":""}]
[null,null,null,null,null,null,null,null,null,null,null,null,null,null,null,{"$f":"IF(N274=\"\",\"\",MAX($P$8:P273)+1)","v":""}]
[null,null,null,null,null,null,null,null,null,null,null,null,null,null,null,{"$f":"IF(N275=\"\",\"\",MAX($P$8:P274)+1)","v":""}]
[null,null,null,null,null,null,null,null,null,null,null,null,null,null,null,{"$f":"IF(N276=\"\",\"\",MAX($P$8:P275)+1)","v":""}]
[null,null,null,null,null,null,null,null,null,null,null,null,null,null,null,{"$f":"IF(N277=\"\",\"\",MAX($P$8:P276)+1)","v":""}]
[null,null,null,null,null,null,null,null,null,null,null,null,null,null,null,{"$f":"IF(N278=\"\",\"\",MAX($P$8:P277)+1)","v":""}]
[null,null,null,null,null,null,null,null,null,null,null,null,null,null,null,{"$f":"IF(N279=\"\",\"\",MAX($P$8:P278)+1)","v":""}]
[null,null,null,null,null,null,null,null,null,null,null,null,null,null,null,{"$f":"IF(N280=\"\",\"\",MAX($P$8:P279)+1)","v":""}]
[null,null,null,null,null,null,null,null,null,null,null,null,null,null,null,{"$f":"IF(N281=\"\",\"\",MAX($P$8:P280)+1)","v":""}]
[null,null,null,null,null,null,null,null,null,null,null,null,null,null,null,{"$f":"IF(N282=\"\",\"\",MAX($P$8:P281)+1)","v":""}]
[null,null,null,null,null,null,null,null,null,null,null,null,null,null,null,{"$f":"IF(N283=\"\",\"\",MAX($P$8:P282)+1)","v":""}]
[null,null,null,null,null,null,null,null,null,null,null,null,null,null,null,{"$f":"IF(N284=\"\",\"\",MAX($P$8:P283)+1)","v":""}]
[null,null,null,null,null,null,null,null,null,null,null,null,null,null,null,{"$f":"IF(N285=\"\",\"\",MAX($P$8:P284)+1)","v":""}]
[null,null,null,null,null,null,null,null,null,null,null,null,null,null,null,{"$f":"IF(N286=\"\",\"\",MAX($P$8:P285)+1)","v":""}]
[null,null,null,null,null,null,null,null,null,null,null,null,null,null,null,{"$f":"IF(N287=\"\",\"\",MAX($P$8:P286)+1)","v":""}]
[null,null,null,null,null,null,null,null,null,null,null,null,null,null,null,{"$f":"IF(N288=\"\",\"\",MAX($P$8:P287)+1)","v":""}]
[null,null,null,null,null,null,null,null,null,null,null,null,null,null,null,{"$f":"IF(N289=\"\",\"\",MAX($P$8:P288)+1)","v":""}]
[null,null,null,null,null,null,null,null,null,null,null,null,null,null,null,{"$f":"IF(N290=\"\",\"\",MAX($P$8:P289)+1)","v":""}]
[null,null,null,null,null,null,null,null,null,null,null,null,null,null,null,{"$f":"IF(N291=\"\",\"\",MAX($P$8:P290)+1)","v":""}]
[null,null,null,null,null,null,null,null,null,null,null,null,null,null,null,{"$f":"IF(N292=\"\",\"\",MAX($P$8:P291)+1)","v":""}]
[null,null,null,null,null,null,null,null,null,null,null,null,null,null,null,{"$f":"IF(N293=\"\",\"\",MAX($P$8:P292)+1)","v":""}]
[null,null,null,null,null,null,null,null,null,null,null,null,null,null,null,{"$f":"IF(N294=\"\",\"\",MAX($P$8:P293)+1)","v":""}]
[null,null,null,null,null,null,null,null,null,null,null,null,null,null,null,{"$f":"IF(N295=\"\",\"\",MAX($P$8:P294)+1)","v":""}]
[null,null,null,null,null,null,null,null,null,null,null,null,null,null,null,{"$f":"IF(N296=\"\",\"\",MAX($P$8:P295)+1)","v":""}]
[null,null,null,null,null,null,null,null,null,null,null,null,null,null,null,{"$f":"IF(N297=\"\",\"\",MAX($P$8:P296)+1)","v":""}]
[null,null,null,null,null,null,null,null,null,null,null,null,null,null,null,{"$f":"IF(N298=\"\",\"\",MAX($P$8:P297)+1)","v":""}]
[null,null,null,null,null,null,null,null,null,null,null,null,null,null,null,{"$f":"IF(N299=\"\",\"\",MAX($P$8:P298)+1)","v":""}]
[null,null,null,null,null,null,null,null,null,null,null,null,null,null,null,{"$f":"IF(N300=\"\",\"\",MAX($P$8:P299)+1)","v":""}]
[null,null,null,null,null,null,null,null,null,null,null,null,null,null,null,{"$f":"IF(N301=\"\",\"\",MAX($P$8:P300)+1)","v":""}]
[null,null,null,null,null,null,null,null,null,null,null,null,null,null,null,{"$f":"IF(N302=\"\",\"\",MAX($P$8:P301)+1)","v":""}]
[null,null,null,null,null,null,null,null,null,null,null,null,null,null,null,{"$f":"IF(N303=\"\",\"\",MAX($P$8:P302)+1)","v":""}]
[null,null,null,null,null,null,null,null,null,null,null,null,null,null,null,{"$f":"IF(N304=\"\",\"\",MAX($P$8:P303)+1)","v":""}]
[null,null,null,null,null,null,null,null,null,null,null,null,null,null,null,{"$f":"IF(N305=\"\",\"\",MAX($P$8:P304)+1)","v":""}]
[null,null,null,null,null,null,null,null,null,null,null,null,null,null,null,{"$f":"IF(N306=\"\",\"\",MAX($P$8:P305)+1)","v":""}]
[null,null,null,null,null,null,null,null,null,null,null,null,null,null,null,{"$f":"IF(N307=\"\",\"\",MAX($P$8:P306)+1)","v":""}]
[null,null,null,null,null,null,null,null,null,null,null,null,null,null,null,{"$f":"IF(N308=\"\",\"\",MAX($P$8:P307)+1)","v":""}]
[null,null,null,null,null,null,null,null,null,null,null,null,null,null,null,{"$f":"IF(N309=\"\",\"\",MAX($P$8:P308)+1)","v":""}]
[null,null,null,null,null,null,null,null,null,null,null,null,null,null,null,{"$f":"IF(N310=\"\",\"\",MAX($P$8:P309)+1)","v":""}]
[null,null,null,null,null,null,null,null,null,null,null,null,null,null,null,{"$f":"IF(N311=\"\",\"\",MAX($P$8:P310)+1)","v":""}]
[null,null,null,null,null,null,null,null,null,null,null,null,null,null,null,{"$f":"IF(N312=\"\",\"\",MAX($P$8:P311)+1)","v":""}]
[null,null,null,null,null,null,null,null,null,null,null,null,null,null,null,{"$f":"IF(N313=\"\",\"\",MAX($P$8:P312)+1)","v":""}]
[null,null,null,null,null,null,null,null,null,null,null,null,null,null,null,{"$f":"IF(N314=\"\",\"\",MAX($P$8:P313)+1)","v":""}]
[null,null,null,null,null,null,null,null,null,null,null,null,null,null,null,{"$f":"IF(N315=\"\",\"\",MAX($P$8:P314)+1)","v":""}]
[null,null,null,null,null,null,null,null,null,null,null,null,null,null,null,{"$f":"IF(N316=\"\",\"\",MAX($P$8:P315)+1)","v":""}]
[null,null,null,null,null,null,null,null,null,null,null,null,null,null,null,{"$f":"IF(N317=\"\",\"\",MAX($P$8:P316)+1)","v":""}]
[null,null,null,null,null,null,null,null,null,null,null,null,null,null,null,{"$f":"IF(N318=\"\",\"\",MAX($P$8:P317)+1)","v":""}]
[null,null,null,null,null,null,null,null,null,null,null,null,null,null,null,{"$f":"IF(N319=\"\",\"\",MAX($P$8:P318)+1)","v":""}]
[null,null,null,null,null,null,null,null,null,null,null,null,null,null,null,{"$f":"IF(N320=\"\",\"\",MAX($P$8:P319)+1)","v":""}]
[null,null,null,null,null,null,null,null,null,null,null,null,null,null,null,{"$f":"IF(N321=\"\",\"\",MAX($P$8:P320)+1)","v":""}]
[null,null,null,null,null,null,null,null,null,null,null,null,null,null,null,{"$f":"IF(N322=\"\",\"\",MAX($P$8:P321)+1)","v":""}]
[null,null,null,null,null,null,null,null,null,null,null,null,null,null,null,{"$f":"IF(N323=\"\",\"\",MAX($P$8:P322)+1)","v":""}]
[null,null,null,null,null,null,null,null,null,null,null,null,null,null,null,{"$f":"IF(N324=\"\",\"\",MAX($P$8:P323)+1)","v":""}]
[null,null,null,null,null,null,null,null,null,null,null,null,null,null,null,{"$f":"IF(N325=\"\",\"\",MAX($P$8:P324)+1)","v":""}]
[null,null,null,null,null,null,null,null,null,null,null,null,null,null,null,{"$f":"IF(N326=\"\",\"\",MAX($P$8:P325)+1)","v":""}]
[null,null,null,null,null,null,null,null,null,null,null,null,null,null,null,{"$f":"IF(N327=\"\",\"\",MAX($P$8:P326)+1)","v":""}]
[null,null,null,null,null,null,null,null,null,null,null,null,null,null,null,{"$f":"IF(N328=\"\",\"\",MAX($P$8:P327)+1)","v":""}]
[null,null,null,null,null,null,null,null,null,null,null,null,null,null,null,{"$f":"IF(N329=\"\",\"\",MAX($P$8:P328)+1)","v":""}]
[null,null,null,null,null,null,null,null,null,null,null,null,null,null,null,{"$f":"IF(N330=\"\",\"\",MAX($P$8:P329)+1)","v":""}]
[null,null,null,null,null,null,null,null,null,null,null,null,null,null,null,{"$f":"IF(N331=\"\",\"\",MAX($P$8:P330)+1)","v":""}]
[null,null,null,null,null,null,null,null,null,null,null,null,null,null,null,{"$f":"IF(N332=\"\",\"\",MAX($P$8:P331)+1)","v":""}]
[null,null,null,null,null,null,null,null,null,null,null,null,null,null,null,{"$f":"IF(N333=\"\",\"\",MAX($P$8:P332)+1)","v":""}]
[null,null,null,null,null,null,null,null,null,null,null,null,null,null,null,{"$f":"IF(N334=\"\",\"\",MAX($P$8:P333)+1)","v":""}]
[null,null,null,null,null,null,null,null,null,null,null,null,null,null,null,{"$f":"IF(N335=\"\",\"\",MAX($P$8:P334)+1)","v":""}]
[null,null,null,null,null,null,null,null,null,null,null,null,null,null,null,{"$f":"IF(N336=\"\",\"\",MAX($P$8:P335)+1)","v":""}]
[null,null,null,null,null,null,null,null,null,null,null,null,null,null,null,{"$f":"IF(N337=\"\",\"\",MAX($P$8:P336)+1)","v":""}]
[null,null,null,null,null,null,null,null,null,null,null,null,null,null,null,{"$f":"IF(N338=\"\",\"\",MAX($P$8:P337)+1)","v":""}]
[null,null,null,null,null,null,null,null,null,null,null,null,null,null,null,{"$f":"IF(N339=\"\",\"\",MAX($P$8:P338)+1)","v":""}]
[null,null,null,null,null,null,null,null,null,null,null,null,null,null,null,{"$f":"IF(N340=\"\",\"\",MAX($P$8:P339)+1)","v":""}]
[null,null,null,null,null,null,null,null,null,null,null,null,null,null,null,{"$f":"IF(N341=\"\",\"\",MAX($P$8:P340)+1)","v":""}]
[null,null,null,null,null,null,null,null,null,null,null,null,null,null,null,{"$f":"IF(N342=\"\",\"\",MAX($P$8:P341)+1)","v":""}]
[null,null,null,null,null,null,null,null,null,null,null,null,null,null,null,{"$f":"IF(N343=\"\",\"\",MAX($P$8:P342)+1)","v":""}]
[null,null,null,null,null,null,null,null,null,null,null,null,null,null,null,{"$f":"IF(N344=\"\",\"\",MAX($P$8:P343)+1)","v":""}]
[null,null,null,null,null,null,null,null,null,null,null,null,null,null,null,{"$f":"IF(N345=\"\",\"\",MAX($P$8:P344)+1)","v":""}]
[null,null,null,null,null,null,null,null,null,null,null,null,null,null,null,{"$f":"IF(N346=\"\",\"\",MAX($P$8:P345)+1)","v":""}]
[null,null,null,null,null,null,null,null,null,null,null,null,null,null,null,{"$f":"IF(N347=\"\",\"\",MAX($P$8:P346)+1)","v":""}]
[null,null,null,null,null,null,null,null,null,null,null,null,null,null,null,{"$f":"IF(N348=\"\",\"\",MAX($P$8:P347)+1)","v":""}]
[null,null,null,null,null,null,null,null,null,null,null,null,null,null,null,{"$f":"IF(N349=\"\",\"\",MAX($P$8:P348)+1)","v":""}]
[null,null,null,null,null,null,null,null,null,null,null,null,null,null,null,{"$f":"IF(N350=\"\",\"\",MAX($P$8:P349)+1)","v":""}]
[null,null,null,null,null,null,null,null,null,null,null,null,null,null,null,{"$f":"IF(N351=\"\",\"\",MAX($P$8:P350)+1)","v":""}]
[null,null,null,null,null,null,null,null,null,null,null,null,null,null,null,{"$f":"IF(N352=\"\",\"\",MAX($P$8:P351)+1)","v":""}]
[null,null,null,null,null,null,null,null,null,null,null,null,null,null,null,{"$f":"IF(N353=\"\",\"\",MAX($P$8:P352)+1)","v":""}]
[null,null,null,null,null,null,null,null,null,null,null,null,null,null,null,{"$f":"IF(N354=\"\",\"\",MAX($P$8:P353)+1)","v":""}]
[null,null,null,null,null,null,null,null,null,null,null,null,null,null,null,{"$f":"IF(N355=\"\",\"\",MAX($P$8:P354)+1)","v":""}]
[null,null,null,null,null,null,null,null,null,null,null,null,null,null,null,{"$f":"IF(N356=\"\",\"\",MAX($P$8:P355)+1)","v":""}]
[null,null,null,null,null,null,null,null,null,null,null,null,null,null,null,{"$f":"IF(N357=\"\",\"\",MAX($P$8:P356)+1)","v":""}]
[null,null,null,null,null,null,null,null,null,null,null,null,null,null,null,{"$f":"IF(N358=\"\",\"\",MAX($P$8:P357)+1)","v":""}]
[null,null,null,null,null,null,null,null,null,null,null,null,null,null,null,{"$f":"IF(N359=\"\",\"\",MAX($P$8:P358)+1)","v":""}]
[null,null,null,null,null,null,null,null,null,null,null,null,null,null,null,{"$f":"IF(N360=\"\",\"\",MAX($P$8:P359)+1)","v":""}]
[null,null,null,null,null,null,null,null,null,null,null,null,null,null,null,{"$f":"IF(N361=\"\",\"\",MAX($P$8:P360)+1)","v":""}]
[null,null,null,null,null,null,null,null,null,null,null,null,null,null,null,{"$f":"IF(N362=\"\",\"\",MAX($P$8:P361)+1)","v":""}]
[null,null,null,null,null,null,null,null,null,null,null,null,null,null,null,{"$f":"IF(N363=\"\",\"\",MAX($P$8:P362)+1)","v":""}]
[null,null,null,null,null,null,null,null,null,null,null,null,null,null,null,{"$f":"IF(N364=\"\",\"\",MAX($P$8:P363)+1)","v":""}]
[null,null,null,null,null,null,null,null,null,null,null,null,null,null,null,{"$f":"IF(N365=\"\",\"\",MAX($P$8:P364)+1)","v":""}]
[null,null,null,null,null,null,null,null,null,null,null,null,null,null,null,{"$f":"IF(N366=\"\",\"\",MAX($P$8:P365)+1)","v":""}]
[null,null,null,null,null,null,null,null,null,null,null,null,null,null,null,{"$f":"IF(N367=\"\",\"\",MAX($P$8:P366)+1)","v":""}]
[null,null,null,null,null,null,null,null,null,null,null,null,null,null,null,{"$f":"IF(N368=\"\",\"\",MAX($P$8:P367)+1)","v":""}]
[null,null,null,null,null,null,null,null,null,null,null,null,null,null,null,{"$f":"IF(N369=\"\",\"\",MAX($P$8:P368)+1)","v":""}]
[null,null,null,null,null,null,null,null,null,null,null,null,null,null,null,{"$f":"IF(N370=\"\",\"\",MAX($P$8:P369)+1)","v":""}]
[null,null,null,null,null,null,null,null,null,null,null,null,null,null,null,{"$f":"IF(N371=\"\",\"\",MAX($P$8:P370)+1)","v":""}]
[null,null,null,null,null,null,null,null,null,null,null,null,null,null,null,{"$f":"IF(N372=\"\",\"\",MAX($P$8:P371)+1)","v":""}]
[null,null,null,null,null,null,null,null,null,null,null,null,null,null,null,{"$f":"IF(N373=\"\",\"\",MAX($P$8:P372)+1)","v":""}]
[null,null,null,null,null,null,null,null,null,null,null,null,null,null,null,{"$f":"IF(N374=\"\",\"\",MAX($P$8:P373)+1)","v":""}]
[null,null,null,null,null,null,null,null,null,null,null,null,null,null,null,{"$f":"IF(N375=\"\",\"\",MAX($P$8:P374)+1)","v":""}]
[null,null,null,null,null,null,null,null,null,null,null,null,null,null,null,{"$f":"IF(N376=\"\",\"\",MAX($P$8:P375)+1)","v":""}]
[null,null,null,null,null,null,null,null,null,null,null,null,null,null,null,{"$f":"IF(N377=\"\",\"\",MAX($P$8:P376)+1)","v":""}]
[null,null,null,null,null,null,null,null,null,null,null,null,null,null,null,{"$f":"IF(N378=\"\",\"\",MAX($P$8:P377)+1)","v":""}]
[null,null,null,null,null,null,null,null,null,null,null,null,null,null,null,{"$f":"IF(N379=\"\",\"\",MAX($P$8:P378)+1)","v":""}]
[null,null,null,null,null,null,null,null,null,null,null,null,null,null,null,{"$f":"IF(N380=\"\",\"\",MAX($P$8:P379)+1)","v":""}]
[null,null,null,null,null,null,null,null,null,null,null,null,null,null,null,{"$f":"IF(N381=\"\",\"\",MAX($P$8:P380)+1)","v":""}]
[null,null,null,null,null,null,null,null,null,null,null,null,null,null,null,{"$f":"IF(N382=\"\",\"\",MAX($P$8:P381)+1)","v":""}]
[null,null,null,null,null,null,null,null,null,null,null,null,null,null,null,{"$f":"IF(N383=\"\",\"\",MAX($P$8:P382)+1)","v":""}]
[null,null,null,null,null,null,null,null,null,null,null,null,null,null,null,{"$f":"IF(N384=\"\",\"\",MAX($P$8:P383)+1)","v":""}]
[null,null,null,null,null,null,null,null,null,null,null,null,null,null,null,{"$f":"IF(N385=\"\",\"\",MAX($P$8:P384)+1)","v":""}]
[null,null,null,null,null,null,null,null,null,null,null,null,null,null,null,{"$f":"IF(N386=\"\",\"\",MAX($P$8:P385)+1)","v":""}]
[null,null,null,null,null,null,null,null,null,null,null,null,null,null,null,{"$f":"IF(N387=\"\",\"\",MAX($P$8:P386)+1)","v":""}]
[null,null,null,null,null,null,null,null,null,null,null,null,null,null,null,{"$f":"IF(N388=\"\",\"\",MAX($P$8:P387)+1)","v":""}]
[null,null,null,null,null,null,null,null,null,null,null,null,null,null,null,{"$f":"IF(N389=\"\",\"\",MAX($P$8:P388)+1)","v":""}]
[null,null,null,null,null,null,null,null,null,null,null,null,null,null,null,{"$f":"IF(N390=\"\",\"\",MAX($P$8:P389)+1)","v":""}]
[null,null,null,null,null,null,null,null,null,null,null,null,null,null,null,{"$f":"IF(N391=\"\",\"\",MAX($P$8:P390)+1)","v":""}]
[null,null,null,null,null,null,null,null,null,null,null,null,null,null,null,{"$f":"IF(N392=\"\",\"\",MAX($P$8:P391)+1)","v":""}]
[null,null,null,null,null,null,null,null,null,null,null,null,null,null,null,{"$f":"IF(N393=\"\",\"\",MAX($P$8:P392)+1)","v":""}]
[null,null,null,null,null,null,null,null,null,null,null,null,null,null,null,{"$f":"IF(N394=\"\",\"\",MAX($P$8:P393)+1)","v":""}]
[null,null,null,null,null,null,null,null,null,null,null,null,null,null,null,{"$f":"IF(N395=\"\",\"\",MAX($P$8:P394)+1)","v":""}]
[null,null,null,null,null,null,null,null,null,null,null,null,null,null,null,{"$f":"IF(N396=\"\",\"\",MAX($P$8:P395)+1)","v":""}]
[null,null,null,null,null,null,null,null,null,null,null,null,null,null,null,{"$f":"IF(N397=\"\",\"\",MAX($P$8:P396)+1)","v":""}]
[null,null,null,null,null,null,null,null,null,null,null,null,null,null,null,{"$f":"IF(N398=\"\",\"\",MAX($P$8:P397)+1)","v":""}]
[null,null,null,null,null,null,null,null,null,null,null,null,null,null,null,{"$f":"IF(N399=\"\",\"\",MAX($P$8:P398)+1)","v":""}]
[null,null,null,null,null,null,null,null,null,null,null,null,null,null,null,{"$f":"IF(N400=\"\",\"\",MAX($P$8:P399)+1)","v":""}]
[null,null,null,null,null,null,null,null,null,null,null,null,null,null,null,{"$f":"IF(N401=\"\",\"\",MAX($P$8:P400)+1)","v":""}]
[null,null,null,null,null,null,null,null,null,null,null,null,null,null,null,{"$f":"IF(N402=\"\",\"\",MAX($P$8:P401)+1)","v":""}]
[null,null,null,null,null,null,null,null,null,null,null,null,null,null,null,{"$f":"IF(N403=\"\",\"\",MAX($P$8:P402)+1)","v":""}]
[null,null,null,null,null,null,null,null,null,null,null,null,null,null,null,{"$f":"IF(N404=\"\",\"\",MAX($P$8:P403)+1)","v":""}]
[null,null,null,null,null,null,null,null,null,null,null,null,null,null,null,{"$f":"IF(N405=\"\",\"\",MAX($P$8:P404)+1)","v":""}]
[null,null,null,null,null,null,null,null,null,null,null,null,null,null,null,{"$f":"IF(N406=\"\",\"\",MAX($P$8:P405)+1)","v":""}]
[null,null,null,null,null,null,null,null,null,null,null,null,null,null,null,{"$f":"IF(N407=\"\",\"\",MAX($P$8:P406)+1)","v":""}]
[null,null,null,null,null,null,null,null,null,null,null,null,null,null,null,{"$f":"IF(N408=\"\",\"\",MAX($P$8:P407)+1)","v":""}]
[null,null,null,null,null,null,null,null,null,null,null,null,null,null,null,{"$f":"IF(N409=\"\",\"\",MAX($P$8:P408)+1)","v":""}]
[null,null,null,null,null,null,null,null,null,null,null,null,null,null,null,{"$f":"IF(N410=\"\",\"\",MAX($P$8:P409)+1)","v":""}]
[null,null,null,null,null,null,null,null,null,null,null,null,null,null,null,{"$f":"IF(N411=\"\",\"\",MAX($P$8:P410)+1)","v":""}]
[null,null,null,null,null,null,null,null,null,null,null,null,null,null,null,{"$f":"IF(N412=\"\",\"\",MAX($P$8:P411)+1)","v":""}]
[null,null,null,null,null,null,null,null,null,null,null,null,null,null,null,{"$f":"IF(N413=\"\",\"\",MAX($P$8:P412)+1)","v":""}]
[null,null,null,null,null,null,null,null,null,null,null,null,null,null,null,{"$f":"IF(N414=\"\",\"\",MAX($P$8:P413)+1)","v":""}]
[null,null,null,null,null,null,null,null,null,null,null,null,null,null,null,{"$f":"IF(N415=\"\",\"\",MAX($P$8:P414)+1)","v":""}]
[null,null,null,null,null,null,null,null,null,null,null,null,null,null,null,{"$f":"IF(N416=\"\",\"\",MAX($P$8:P415)+1)","v":""}]
[null,null,null,null,null,null,null,null,null,null,null,null,null,null,null,{"$f":"IF(N417=\"\",\"\",MAX($P$8:P416)+1)","v":""}]
[null,null,null,null,null,null,null,null,null,null,null,null,null,null,null,{"$f":"IF(N418=\"\",\"\",MAX($P$8:P417)+1)","v":""}]
[null,null,null,null,null,null,null,null,null,null,null,null,null,null,null,{"$f":"IF(N419=\"\",\"\",MAX($P$8:P418)+1)","v":""}]
[null,null,null,null,null,null,null,null,null,null,null,null,null,null,null,{"$f":"IF(N420=\"\",\"\",MAX($P$8:P419)+1)","v":""}]
[null,null,null,null,null,null,null,null,null,null,null,null,null,null,null,{"$f":"IF(N421=\"\",\"\",MAX($P$8:P420)+1)","v":""}]
[null,null,null,null,null,null,null,null,null,null,null,null,null,null,null,{"$f":"IF(N422=\"\",\"\",MAX($P$8:P421)+1)","v":""}]
[null,null,null,null,null,null,null,null,null,null,null,null,null,null,null,{"$f":"IF(N423=\"\",\"\",MAX($P$8:P422)+1)","v":""}]
[null,null,null,null,null,null,null,null,null,null,null,null,null,null,null,{"$f":"IF(N424=\"\",\"\",MAX($P$8:P423)+1)","v":""}]
[null,null,null,null,null,null,null,null,null,null,null,null,null,null,null,{"$f":"IF(N425=\"\",\"\",MAX($P$8:P424)+1)","v":""}]
[null,null,null,null,null,null,null,null,null,null,null,null,null,null,null,{"$f":"IF(N426=\"\",\"\",MAX($P$8:P425)+1)","v":""}]
[null,null,null,null,null,null,null,null,null,null,null,null,null,null,null,{"$f":"IF(N427=\"\",\"\",MAX($P$8:P426)+1)","v":""}]
[null,null,null,null,null,null,null,null,null,null,null,null,null,null,null,{"$f":"IF(N428=\"\",\"\",MAX($P$8:P427)+1)","v":""}]
[null,null,null,null,null,null,null,null,null,null,null,null,null,null,null,{"$f":"IF(N429=\"\",\"\",MAX($P$8:P428)+1)","v":""}]
[null,null,null,null,null,null,null,null,null,null,null,null,null,null,null,{"$f":"IF(N430=\"\",\"\",MAX($P$8:P429)+1)","v":""}]
[null,null,null,null,null,null,null,null,null,null,null,null,null,null,null,{"$f":"IF(N431=\"\",\"\",MAX($P$8:P430)+1)","v":""}]
[null,null,null,null,null,null,null,null,null,null,null,null,null,null,null,{"$f":"IF(N432=\"\",\"\",MAX($P$8:P431)+1)","v":""}]
[null,null,null,null,null,null,null,null,null,null,null,null,null,null,null,{"$f":"IF(N433=\"\",\"\",MAX($P$8:P432)+1)","v":""}]
[null,null,null,null,null,null,null,null,null,null,null,null,null,null,null,{"$f":"IF(N434=\"\",\"\",MAX($P$8:P433)+1)","v":""}]
[null,null,null,null,null,null,null,null,null,null,null,null,null,null,null,{"$f":"IF(N435=\"\",\"\",MAX($P$8:P434)+1)","v":""}]
[null,null,null,null,null,null,null,null,null,null,null,null,null,null,null,{"$f":"IF(N436=\"\",\"\",MAX($P$8:P435)+1)","v":""}]
[null,null,null,null,null,null,null,null,null,null,null,null,null,null,null,{"$f":"IF(N437=\"\",\"\",MAX($P$8:P436)+1)","v":""}]
[null,null,null,null,null,null,null,null,null,null,null,null,null,null,null,{"$f":"IF(N438=\"\",\"\",MAX($P$8:P437)+1)","v":""}]
[null,null,null,null,null,null,null,null,null,null,null,null,null,null,null,{"$f":"IF(N439=\"\",\"\",MAX($P$8:P438)+1)","v":""}]
[null,null,null,null,null,null,null,null,null,null,null,null,null,null,null,{"$f":"IF(N440=\"\",\"\",MAX($P$8:P439)+1)","v":""}]
[null,null,null,null,null,null,null,null,null,null,null,null,null,null,null,{"$f":"IF(N441=\"\",\"\",MAX($P$8:P440)+1)","v":""}]
[null,null,null,null,null,null,null,null,null,null,null,null,null,null,null,{"$f":"IF(N442=\"\",\"\",MAX($P$8:P441)+1)","v":""}]
[null,null,null,null,null,null,null,null,null,null,null,null,null,null,null,{"$f":"IF(N443=\"\",\"\",MAX($P$8:P442)+1)","v":""}]
[null,null,null,null,null,null,null,null,null,null,null,null,null,null,null,{"$f":"IF(N444=\"\",\"\",MAX($P$8:P443)+1)","v":""}]
[null,null,null,null,null,null,null,null,null,null,null,null,null,null,null,{"$f":"IF(N445=\"\",\"\",MAX($P$8:P444)+1)","v":""}]
[null,null,null,null,null,null,null,null,null,null,null,null,null,null,null,{"$f":"IF(N446=\"\",\"\",MAX($P$8:P445)+1)","v":""}]
[null,null,null,null,null,null,null,null,null,null,null,null,null,null,null,{"$f":"IF(N447=\"\",\"\",MAX($P$8:P446)+1)","v":""}]
[null,null,null,null,null,null,null,null,null,null,null,null,null,null,null,{"$f":"IF(N448=\"\",\"\",MAX($P$8:P447)+1)","v":""}]
[null,null,null,null,null,null,null,null,null,null,null,null,null,null,null,{"$f":"IF(N449=\"\",\"\",MAX($P$8:P448)+1)","v":""}]
[null,null,null,null,null,null,null,null,null,null,null,null,null,null,null,{"$f":"IF(N450=\"\",\"\",MAX($P$8:P449)+1)","v":""}]
[null,null,null,null,null,null,null,null,null,null,null,null,null,null,null,{"$f":"IF(N451=\"\",\"\",MAX($P$8:P450)+1)","v":""}]
[null,null,null,null,null,null,null,null,null,null,null,null,null,null,null,{"$f":"IF(N452=\"\",\"\",MAX($P$8:P451)+1)","v":""}]
[null,null,null,null,null,null,null,null,null,null,null,null,null,null,null,{"$f":"IF(N453=\"\",\"\",MAX($P$8:P452)+1)","v":""}]
[null,null,null,null,null,null,null,null,null,null,null,null,null,null,null,{"$f":"IF(N454=\"\",\"\",MAX($P$8:P453)+1)","v":""}]
[null,null,null,null,null,null,null,null,null,null,null,null,null,null,null,{"$f":"IF(N455=\"\",\"\",MAX($P$8:P454)+1)","v":""}]
[null,null,null,null,null,null,null,null,null,null,null,null,null,null,null,{"$f":"IF(N456=\"\",\"\",MAX($P$8:P455)+1)","v":""}]
[null,null,null,null,null,null,null,null,null,null,null,null,null,null,null,{"$f":"IF(N457=\"\",\"\",MAX($P$8:P456)+1)","v":""}]
[null,null,null,null,null,null,null,null,null,null,null,null,null,null,null,{"$f":"IF(N458=\"\",\"\",MAX($P$8:P457)+1)","v":""}]
[null,null,null,null,null,null,null,null,null,null,null,null,null,null,null,{"$f":"IF(N459=\"\",\"\",MAX($P$8:P458)+1)","v":""}]
[null,null,null,null,null,null,null,null,null,null,null,null,null,null,null,{"$f":"IF(N460=\"\",\"\",MAX($P$8:P459)+1)","v":""}]
[null,null,null,null,null,null,null,null,null,null,null,null,null,null,null,{"$f":"IF(N461=\"\",\"\",MAX($P$8:P460)+1)","v":""}]
[null,null,null,null,null,null,null,null,null,null,null,null,null,null,null,{"$f":"IF(N462=\"\",\"\",MAX($P$8:P461)+1)","v":""}]
[null,null,null,null,null,null,null,null,null,null,null,null,null,null,null,{"$f":"IF(N463=\"\",\"\",MAX($P$8:P462)+1)","v":""}]
[null,null,null,null,null,null,null,null,null,null,null,null,null,null,null,{"$f":"IF(N464=\"\",\"\",MAX($P$8:P463)+1)","v":""}]
[null,null,null,null,null,null,null,null,null,null,null,null,null,null,null,{"$f":"IF(N465=\"\",\"\",MAX($P$8:P464)+1)","v":""}]
[null,null,null,null,null,null,null,null,null,null,null,null,null,null,null,{"$f":"IF(N466=\"\",\"\",MAX($P$8:P465)+1)","v":""}]
[null,null,null,null,null,null,null,null,null,null,null,null,null,null,null,{"$f":"IF(N467=\"\",\"\",MAX($P$8:P466)+1)","v":""}]
[null,null,null,null,null,null,null,null,null,null,null,null,null,null,null,{"$f":"IF(N468=\"\",\"\",MAX($P$8:P467)+1)","v":""}]
[null,null,null,null,null,null,null,null,null,null,null,null,null,null,null,{"$f":"IF(N469=\"\",\"\",MAX($P$8:P468)+1)","v":""}]
[null,null,null,null,null,null,null,null,null,null,null,null,null,null,null,{"$f":"IF(N470=\"\",\"\",MAX($P$8:P469)+1)","v":""}]
[null,null,null,null,null,null,null,null,null,null,null,null,null,null,null,{"$f":"IF(N471=\"\",\"\",MAX($P$8:P470)+1)","v":""}]
[null,null,null,null,null,null,null,null,null,null,null,null,null,null,null,{"$f":"IF(N472=\"\",\"\",MAX($P$8:P471)+1)","v":""}]
[null,null,null,null,null,null,null,null,null,null,null,null,null,null,null,{"$f":"IF(N473=\"\",\"\",MAX($P$8:P472)+1)","v":""}]
[null,null,null,null,null,null,null,null,null,null,null,null,null,null,null,{"$f":"IF(N474=\"\",\"\",MAX($P$8:P473)+1)","v":""}]
[null,null,null,null,null,null,null,null,null,null,null,null,null,null,null,{"$f":"IF(N475=\"\",\"\",MAX($P$8:P474)+1)","v":""}]
[null,null,null,null,null,null,null,null,null,null,null,null,null,null,null,{"$f":"IF(N476=\"\",\"\",MAX($P$8:P475)+1)","v":""}]
[null,null,null,null,null,null,null,null,null,null,null,null,null,null,null,{"$f":"IF(N477=\"\",\"\",MAX($P$8:P476)+1)","v":""}]
[null,null,null,null,null,null,null,null,null,null,null,null,null,null,null,{"$f":"IF(N478=\"\",\"\",MAX($P$8:P477)+1)","v":""}]
[null,null,null,null,null,null,null,null,null,null,null,null,null,null,null,{"$f":"IF(N479=\"\",\"\",MAX($P$8:P478)+1)","v":""}]
[null,null,null,null,null,null,null,null,null,null,null,null,null,null,null,{"$f":"IF(N480=\"\",\"\",MAX($P$8:P479)+1)","v":""}]
[null,null,null,null,null,null,null,null,null,null,null,null,null,null,null,{"$f":"IF(N481=\"\",\"\",MAX($P$8:P480)+1)","v":""}]
[null,null,null,null,null,null,null,null,null,null,null,null,null,null,null,{"$f":"IF(N482=\"\",\"\",MAX($P$8:P481)+1)","v":""}]
[null,null,null,null,null,null,null,null,null,null,null,null,null,null,null,{"$f":"IF(N483=\"\",\"\",MAX($P$8:P482)+1)","v":""}]
[null,null,null,null,null,null,null,null,null,null,null,null,null,null,null,{"$f":"IF(N484=\"\",\"\",MAX($P$8:P483)+1)","v":""}]
[null,null,null,null,null,null,null,null,null,null,null,null,null,null,null,{"$f":"IF(N485=\"\",\"\",MAX($P$8:P484)+1)","v":""}]
[null,null,null,null,null,null,null,null,null,null,null,null,null,null,null,{"$f":"IF(N486=\"\",\"\",MAX($P$8:P485)+1)","v":""}]
[null,null,null,null,null,null,null,null,null,null,null,null,null,null,null,{"$f":"IF(N487=\"\",\"\",MAX($P$8:P486)+1)","v":""}]
[null,null,null,null,null,null,null,null,null,null,null,null,null,null,null,{"$f":"IF(N488=\"\",\"\",MAX($P$8:P487)+1)","v":""}]
[null,null,null,null,null,null,null,null,null,null,null,null,null,null,null,{"$f":"IF(N489=\"\",\"\",MAX($P$8:P488)+1)","v":""}]
[null,null,null,null,null,null,null,null,null,null,null,null,null,null,null,{"$f":"IF(N490=\"\",\"\",MAX($P$8:P489)+1)","v":""}]
[null,null,null,null,null,null,null,null,null,null,null,null,null,null,null,{"$f":"IF(N491=\"\",\"\",MAX($P$8:P490)+1)","v":""}]
[null,null,null,null,null,null,null,null,null,null,null,null,null,null,null,{"$f":"IF(N492=\"\",\"\",MAX($P$8:P491)+1)","v":""}]
[null,null,null,null,null,null,null,null,null,null,null,null,null,null,null,{"$f":"IF(N493=\"\",\"\",MAX($P$8:P492)+1)","v":""}]
[null,null,null,null,null,null,null,null,null,null,null,null,null,null,null,{"$f":"IF(N494=\"\",\"\",MAX($P$8:P493)+1)","v":""}]
[null,null,null,null,null,null,null,null,null,null,null,null,null,null,null,{"$f":"IF(N495=\"\",\"\",MAX($P$8:P494)+1)","v":""}]
[null,null,null,null,null,null,null,null,null,null,null,null,null,null,null,{"$f":"IF(N496=\"\",\"\",MAX($P$8:P495)+1)","v":""}]
[null,null,null,null,null,null,null,null,null,null,null,null,null,null,null,{"$f":"IF(N497=\"\",\"\",MAX($P$8:P496)+1)","v":""}]
[null,null,null,null,null,null,null,null,null,null,null,null,null,null,null,{"$f":"IF(N498=\"\",\"\",MAX($P$8:P497)+1)","v":""}]
[null,null,null,null,null,null,null,null,null,null,null,null,null,null,null,{"$f":"IF(N499=\"\",\"\",MAX($P$8:P498)+1)","v":""}]
[null,null,null,null,null,null,null,null,null,null,null,null,null,null,null,{"$f":"IF(N500=\"\",\"\",MAX($P$8:P499)+1)","v":""}]
[{"$f":"IF(B501=\"\",\"\",MAX($A$4:A500)+1)","v":""},null,null,null,null,null,null,null,null,null,null,null,null,null,null,{"$f":"IF(N501=\"\",\"\",MAX($P$8:P500)+1)","v":""}]
[{"$f":"IF(B502=\"\",\"\",MAX($A$4:A501)+1)","v":""},null,null,null,null,null,null,null,null,null,null,null,null,null,null,{"$f":"IF(N502=\"\",\"\",MAX($P$8:P501)+1)","v":""}]
[{"$f":"IF(B503=\"\",\"\",MAX($A$4:A502)+1)","v":""},null,null,null,null,null,null,null,null,null,null,null,null,null,null,{"$f":"IF(N503=\"\",\"\",MAX($P$8:P502)+1)","v":""}]
[{"$f":"IF(B504=\"\",\"\",MAX($A$4:A503)+1)","v":""},null,null,null,null,null,null,null,null,null,null,null,null,null,null,{"$f":"IF(N504=\"\",\"\",MAX($P$8:P503)+1)","v":""}]
[null,null,null,null,null,null,null,null,null,null,null,null,null,null,null,{"$f":"IF(N505=\"\",\"\",MAX($P$8:P504)+1)","v":""}]
[null,null,null,null,null,null,null,null,null,null,null,null,null,null,null,{"$f":"IF(N506=\"\",\"\",MAX($P$8:P505)+1)","v":""}]
[null,null,null,null,null,null,null,null,null,null,null,null,null,null,null,{"$f":"IF(N507=\"\",\"\",MAX($P$8:P506)+1)","v":""}]
[null,null,null,null,null,null,null,null,null,null,null,null,null,null,null,{"$f":"IF(N508=\"\",\"\",MAX($P$8:P507)+1)","v":""}]

{"sheet":"ورقة2","index":1,"n_rows":0,"n_cols":0,"rows_kept":0,"cut":false,"hidden":false,"merged":[]}

{"sheet":"ورقة3","index":2,"n_rows":0,"n_cols":0,"rows_kept":0,"cut":false,"hidden":false,"merged":[]}